bitfinex/quotes_BTCUSD_20240703
["timestamp","ask_amount","ask_price","bid_price","bid_amount"]
[1719992352144,2.12593628,61084.0,61083.0,0.35978116]
[1719992352296,2.14311123,61084.0,61083.0,0.37378116]
[1719992352837,2.14311123,61084.0,61083.0,0.35978116]
[1719992353036,2.14311123,61084.0,61083.0,0.37078116]
[1719992353271,2.14311123,61084.0,61083.0,0.35978116]
[1719992353480,2.02983628,61084.0,61083.0,0.35978116]
[1719992353699,2.12593628,61084.0,61083.0,0.38278116]
[1719992354020,2.12593628,61084.0,61083.0,0.36878116]
[1719992354456,2.02983628,61084.0,61083.0,0.37878116]
[1719992354634,2.12593628,61084.0,61083.0,0.37878116]
[1719992357454,2.100293,61084.0,61083.0,0.37878116]
[1719992360548,2.004193,61084.0,61083.0,0.37878116]
[1719992360767,2.100293,61084.0,61083.0,0.37878116]
[1719992364264,2.004193,61084.0,61083.0,0.37878116]
[1719992364498,2.100293,61084.0,61083.0,0.37970516]
[1719992366371,2.004193,61084.0,61083.0,0.37970516]
[1719992366581,2.100293,61084.0,61083.0,0.37970516]
[1719992371641,2.12594262,61084.0,61083.0,0.37970516]
[1719992389367,2.14351254,61084.0,61083.0,0.37970516]
[1719992392605,2.12594262,61084.0,61083.0,0.37970516]
[1719992392714,2.14353508,61084.0,61083.0,0.37970516]
[1719992394058,2.14373508,61084.0,61083.0,0.37970516]
[1719992394684,2.04743508,61084.0,61083.0,0.37970516]
[1719992394849,2.14353508,61084.0,61083.0,0.37970516]
[1719992395309,2.04743508,61084.0,61083.0,0.37970516]
[1719992395514,2.14353508,61084.0,61083.0,0.37970516]
[1719992395723,2.05113508,61084.0,61083.0,0.37970516]
[1719992396356,2.05125919,61084.0,61083.0,0.37970516]
[1719992396780,2.03354262,61084.0,61083.0,0.37970516]
[1719992396978,2.05122382,61084.0,61083.0,0.37970516]
[1719992399382,2.05142382,61084.0,61083.0,0.37970516]
[1719992399591,2.05155895,61084.0,61083.0,0.37970516]
[1719992400525,1.95545895,61084.0,61083.0,0.37970516]
[1719992400752,1.84445895,61084.0,61083.0,0.37970516]
[1719992400946,1.94055895,61084.0,61083.0,0.37970516]
[1719992402133,1.94039302,61084.0,61083.0,0.37970516]
[1719992402771,1.94059302,61084.0,61083.0,0.37970516]
[1719992403087,2.15519302,61084.0,61083.0,0.37970516]
[1719992403288,2.38803954,61084.0,61083.0,0.37970516]
[1719992403623,2.22190707,61084.0,61083.0,0.37970516]
[1719992404003,2.22190707,61084.0,61083.0,0.21940636]
[1719992404004,2.56482407,61084.0,61083.0,0.21940636]
[1719992404206,2.66112407,61084.0,61083.0,0.21940636]
[1719992404411,2.66112407,61084.0,61083.0,0.019924]
[1719992404613,2.66112407,61084.0,61074.0,0.001174]
[1719992404614,2.345157,61077.0,61074.0,0.001174]
[1719992404812,3.53991402,61077.0,61074.0,0.001174]
[1719992405093,3.63991402,61077.0,61074.0,0.001174]
[1719992405491,3.71046907,61077.0,61074.0,0.001174]
[1719992405988,3.71040493,61077.0,61074.0,0.001174]
[1719992406912,3.71340493,61077.0,61074.0,0.001174]
[1719992407115,4.02240493,61077.0,61076.0,0.001924]
[1719992407459,4.01340493,61077.0,61076.0,0.000924]
[1719992407795,4.02240493,61077.0,61076.0,0.001924]
[1719992408202,3.72240493,61077.0,61076.0,0.001924]
[1719992408542,3.88806692,61077.0,61076.0,0.001924]
[1719992408742,3.88806566,61077.0,61076.0,0.001924]
[1719992409475,3.72240493,61077.0,61076.0,0.001924]
[1719992410101,4.02240493,61077.0,61076.0,0.001924]
[1719992410800,3.72240493,61077.0,61076.0,0.001924]
[1719992411208,4.02240493,61077.0,61076.0,0.001924]
[1719992411725,4.02257211,61077.0,61076.0,0.001924]
[1719992412245,3.72257211,61077.0,61076.0,0.001924]
[1719992412717,3.70917411,61077.0,61076.0,0.001924]
[1719992412910,2.89433511,61077.0,61076.0,0.001924]
[1719992413109,3.0101646,61077.0,61076.0,0.001924]
[1719992415041,3.01050339,61077.0,61076.0,0.001924]
[1719992416239,2.128729,61075.0,61074.0,0.001174]
[1719992416436,4.5095629,61075.0,61074.0,0.001174]
[1719992417082,4.8095629,61075.0,61074.0,0.001174]
[1719992417461,4.5095629,61075.0,61074.0,0.001174]
[1719992417856,4.5155629,61075.0,61074.0,0.002174]
[1719992418174,4.5195629,61075.0,61074.0,0.002174]
[1719992418376,4.52009348,61075.0,61074.0,0.002174]
[1719992418727,4.43071562,61075.0,61074.0,0.002174]
[1719992418893,4.52009348,61075.0,61074.0,0.002174]
[1719992419812,4.82009348,61075.0,61074.0,0.002174]
[1719992420034,4.82009348,61075.0,61068.0,0.000924]
[1719992420035,5.63875848,61075.0,61068.0,0.000924]
[1719992420307,2.434337,61069.0,61068.0,0.000924]
[1719992420522,4.28878552,61069.0,61058.0,0.08015582]
[1719992420724,1.897836,61059.0,61058.0,0.08015582]
[1719992420926,2.27149452,61059.0,61058.0,0.08015582]
[1719992421057,2.37149452,61059.0,61058.0,0.27963818]
[1719992421481,2.37271084,61059.0,61058.0,0.27963818]
[1719992421685,2.37251084,61059.0,61058.0,0.08015582]
[1719992422332,2.37251084,61059.0,61058.0,0.09815582]
[1719992422333,2.37451084,61059.0,61058.0,0.09815582]
[1719992424765,2.37451084,61059.0,61058.0,0.018]
[1719992424766,2.37407541,61059.0,61058.0,0.018]
[1719992427955,2.37418392,61059.0,61058.0,0.018]
[1719992429242,2.39423344,61059.0,61058.0,0.018]
[1719992431299,2.37288714,61059.0,61058.0,0.018]
[1719992431431,2.39410196,61059.0,61058.0,0.018]
[1719992431816,2.39410209,61059.0,61058.0,0.018]
[1719992434538,2.39413553,61059.0,61058.0,0.018]
[1719992437856,2.37288714,61059.0,61058.0,0.018]
[1719992438060,2.39388012,61059.0,61058.0,0.018]
[1719992441320,2.39392006,61059.0,61058.0,0.018]
[1719992441647,2.37288714,61059.0,61058.0,0.018]
[1719992441848,2.39391955,61059.0,61058.0,0.018]
[1719992443458,2.29781955,61059.0,61058.0,0.018]
[1719992443642,2.39391955,61059.0,61058.0,0.018]
[1719992443848,2.39391955,61059.0,61058.0,0.1089]
[1719992444566,2.39402577,61059.0,61058.0,0.1089]
[1719992445106,2.37288714,61059.0,61058.0,0.1089]
[1719992445307,2.39395496,61059.0,61058.0,0.1089]
[1719992447776,2.37288714,61059.0,61058.0,0.1089]
[1719992448000,2.37288714,61059.0,61058.0,0.018]
[1719992448001,2.46340107,61059.0,61058.0,0.018]
[1719992454588,2.46327254,61059.0,61058.0,0.018]
[1719992455761,2.46330225,61059.0,61058.0,0.018]
[1719992458955,1.801591,61057.0,61056.0,0.08807447]
[1719992459151,1.94825906,61057.0,61056.0,0.08807447]
[1719992459353,1.94825906,61057.0,61056.0,0.06459512]
[1719992459692,2.27582106,61057.0,61056.0,0.06459512]
[1719992459897,2.34521773,61057.0,61056.0,0.06459512]
[1719992460252,2.34621773,61057.0,61056.0,0.07559512]
[1719992460655,2.25580262,61057.0,61056.0,0.07559512]
[1719992460855,2.34613496,61057.0,61056.0,0.07559512]
[1719992461055,2.34713496,61057.0,61056.0,0.07759512]
[1719992461658,2.34713496,61057.0,61056.0,0.07851912]
[1719992462929,2.34713496,61057.0,61056.0,0.013924]
[1719992463823,2.44323496,61057.0,61056.0,0.013924]
[1719992465382,2.60904257,61057.0,61056.0,0.013924]
[1719992466582,2.44323496,61057.0,61056.0,0.013924]
[1719992466780,2.60748758,61057.0,61056.0,0.013924]
[1719992467341,2.44154635,61057.0,61056.0,0.013924]
[1719992467739,2.44154635,61057.0,61055.0,0.20040636]
[1719992467740,1.774056,61056.0,61055.0,1e-06]
[1719992467984,0.114,61049.0,61043.0,0.39913569]
[1719992468190,0.91518,61044.0,61043.0,0.39913569]
[1719992468430,2.04379984,61044.0,61043.0,0.37540172]
[1719992468595,2.37143184,61044.0,61043.0,0.37540172]
[1719992469192,2.37143184,61044.0,61043.0,0.37740172]
[1719992469373,2.44000135,61044.0,61043.0,0.37740172]
[1719992469884,2.44104318,61044.0,61043.0,0.37740172]
[1719992470087,2.65354318,61044.0,61043.0,0.002]
[1719992470267,2.129744,61040.0,61039.0,0.17269723]
[1719992470480,2.35149362,61040.0,61039.0,0.17269723]
[1719992470675,2.37238012,61040.0,61039.0,0.17269723]
[1719992471295,0.24263612,61040.0,61036.0,0.28669723]
[1719992471501,0.3,61043.0,61036.0,0.28669723]
[1719992471502,0.259935,61037.0,61036.0,0.28669723]
[1719992471704,0.259935,61037.0,61036.0,0.17269723]
[1719992471705,1.06181112,61037.0,61036.0,0.17269723]
[1719992471887,2.04482112,61037.0,61036.0,0.17269723]
[1719992472866,2.02393462,61037.0,61036.0,0.17269723]
[1719992473060,2.04510584,61037.0,61036.0,0.17269723]
[1719992473211,1.474753,61027.0,61026.0,0.17362123]
[1719992473409,1.474753,61027.0,61026.0,0.36562123]
[1719992473410,2.04494111,61027.0,61026.0,0.36562123]
[1719992474435,2.37266411,61027.0,61026.0,0.36562123]
[1719992475280,2.37366411,61027.0,61026.0,0.36562123]
[1719992475841,2.37466411,61027.0,61026.0,0.36562123]
[1719992476433,2.27856411,61027.0,61026.0,0.36562123]
[1719992476637,2.37466411,61027.0,61026.0,0.36562123]
[1719992479423,2.37452534,61027.0,61026.0,0.36562123]
[1719992482640,2.35394862,61027.0,61026.0,0.36562123]
[1719992482834,2.37453214,61027.0,61026.0,0.36562123]
[1719992483035,2.35394862,61027.0,61026.0,0.36562123]
[1719992483254,2.37453214,61027.0,61026.0,0.36562123]
[1719992485416,2.39494083,61027.0,61026.0,0.36562123]
[1719992485859,2.39502098,61027.0,61026.0,0.36562123]
[1719992487415,2.29892098,61027.0,61026.0,0.36562123]
[1719992487642,2.39502098,61027.0,61026.0,0.36562123]
[1719992489187,2.39500719,61027.0,61026.0,0.36562123]
[1719992492600,2.29890719,61027.0,61026.0,0.36562123]
[1719992493019,2.39500719,61027.0,61026.0,0.36562123]
[1719992493221,2.29890719,61027.0,61026.0,0.36562123]
[1719992493428,2.39500719,61027.0,61026.0,0.36562123]
[1719992494241,2.39400719,61027.0,61026.0,0.36562123]
[1719992494648,1.97118419,61027.0,61026.0,0.52592003]
[1719992494851,1.6230525,61027.0,61026.0,0.58532003]
[1719992495055,1.576753,61027.0,61026.0,0.58532003]
[1719992495259,1.575753,61027.0,61026.0,0.58532003]
[1719992496412,1.576753,61027.0,61026.0,0.58532003]
[1719992497401,1.575753,61027.0,61026.0,0.58532003]
[1719992497821,1.576753,61027.0,61026.0,0.58932003]
[1719992499493,1.6024211,61027.0,61026.0,0.58932003]
[1719992500644,1.6024211,61027.0,61026.0,0.56543408]
[1719992503766,1.6024211,61027.0,61026.0,0.42073408]
[1719992503767,1.9291441,61027.0,61026.0,0.42073408]
[1719992503979,1.61788315,61027.0,61026.0,0.42073408]
[1719992504498,1.61688315,61027.0,61026.0,0.40524563]
[1719992504730,1.61688315,61027.0,61026.0,0.29854563]
[1719992504932,1.61688315,61027.0,61026.0,0.11868793]
[1719992504933,2.04060615,61027.0,61026.0,0.11868793]
[1719992505333,2.04079481,61027.0,61026.0,0.11868793]
[1719992505509,2.04079481,61027.0,61026.0,0.11468793]
[1719992505735,2.03979481,61027.0,61026.0,0.11468793]
[1719992505942,2.04079481,61027.0,61026.0,0.11868793]
[1719992506359,2.04179481,61027.0,61026.0,0.11868793]
[1719992508657,2.04133601,61027.0,61026.0,0.11868793]
[1719992509049,1.9301441,61027.0,61026.0,0.11868793]
[1719992509269,2.27406237,61027.0,61026.0,0.11868793]
[1719992509470,2.27406237,61027.0,61026.0,0.004]
[1719992509646,2.29406563,61027.0,61026.0,0.004]
[1719992509883,2.48529591,61027.0,61026.0,0.004]
[1719992511249,2.57259591,61027.0,61026.0,0.004]
[1719992511559,2.87259591,61027.0,61026.0,0.004]
[1719992511886,2.87296416,61027.0,61026.0,0.004]
[1719992512091,2.87196416,61027.0,61026.0,0.004]
[1719992512288,2.130303,61024.0,61023.0,0.000924]
[1719992512488,2.36855424,61024.0,61023.0,0.000924]
[1719992514806,2.36855424,61024.0,61023.0,0.004924]
[1719992515007,2.3520711,61024.0,61023.0,0.004924]
[1719992515215,2.3684344,61024.0,61023.0,0.004924]
[1719992515412,2.5824344,61024.0,61023.0,0.004924]
[1719992516824,2.58229704,61024.0,61023.0,0.004924]
[1719992518233,2.5660711,61024.0,61023.0,0.004924]
[1719992518382,2.58243128,61024.0,61023.0,0.004924]
[1719992521012,2.5825491,61024.0,61023.0,0.004924]
[1719992523517,2.582536,61024.0,61023.0,0.004924]
[1719992527402,2.58244432,61024.0,61023.0,0.004924]
[1719992528966,2.36844432,61024.0,61023.0,0.004924]
[1719992530666,2.36859903,61024.0,61023.0,0.004924]
[1719992533354,2.43404475,61024.0,61023.0,0.004924]
[1719992533872,2.43404605,61024.0,61023.0,0.004924]
[1719992534299,2.3520711,61024.0,61023.0,0.004924]
[1719992534455,2.4340448,61024.0,61023.0,0.004924]
[1719992537056,2.433936,61024.0,61023.0,0.004924]
[1719992538689,2.337836,61024.0,61023.0,0.004924]
[1719992538914,2.433936,61024.0,61023.0,0.123624]
[1719992539643,2.337836,61024.0,61023.0,0.123624]
[1719992540065,2.433936,61024.0,61023.0,0.123624]
[1719992540440,2.43572852,61024.0,61023.0,0.123624]
[1719992541138,2.01188952,61024.0,61023.0,0.23831193]
[1719992541275,2.01188952,61024.0,61023.0,0.33851193]
[1719992541276,2.10798952,61024.0,61023.0,0.33851193]
[1719992546795,2.10798952,61024.0,61023.0,0.39791193]
[1719992546796,1.78169196,61024.0,61023.0,0.39791193]
[1719992547021,1.68559196,61024.0,61023.0,0.39791193]
[1719992547231,1.78176538,61024.0,61023.0,0.39791193]
[1719992547464,1.78176538,61024.0,61023.0,0.55821073]
[1719992548518,1.68566538,61024.0,61023.0,0.55821073]
[1719992548851,1.78176538,61024.0,61023.0,0.55821073]
[1719992549420,1.68566538,61024.0,61023.0,0.55821073]
[1719992549617,1.78176538,61024.0,61023.0,0.55821073]
[1719992549821,1.7826821,61024.0,61023.0,0.55821073]
[1719992553205,1.7833859,61024.0,61023.0,0.55821073]
[1719992554419,1.94815891,61024.0,61023.0,0.55821073]
[1719992555121,1.94815891,61024.0,61023.0,0.55443773]
[1719992556526,1.94841538,61024.0,61023.0,0.55443773]
[1719992556860,1.85231538,61024.0,61023.0,0.55443773]
[1719992557073,1.94841538,61024.0,61023.0,0.55443773]
[1719992558835,1.85231538,61024.0,61023.0,0.55443773]
[1719992559273,1.94841538,61024.0,61023.0,0.55443773]
[1719992559575,1.6955931,61024.0,61023.0,0.55443773]
[1719992559722,1.61909356,61024.0,61023.0,0.55443773]
[1719992559934,1.71519356,61024.0,61023.0,0.55443773]
[1719992560329,1.71519196,61024.0,61023.0,0.55443773]
[1719992561042,1.71519196,61024.0,61023.0,0.55328673]
[1719992561499,1.71519196,61024.0,61023.0,0.55828673]
[1719992561500,1.71619196,61024.0,61023.0,0.55828673]
[1719992562408,1.55417484,61024.0,61023.0,0.56028673]
[1719992562552,1.71804384,61024.0,61023.0,0.56028673]
[1719992562758,1.6985931,61024.0,61023.0,0.56028673]
[1719992562957,1.71798199,61024.0,61023.0,0.56028673]
[1719992566201,1.6985931,61024.0,61023.0,0.56028673]
[1719992566399,1.71798324,61024.0,61023.0,0.56028673]
[1719992566914,1.62188324,61024.0,61023.0,0.56028673]
[1719992567110,1.71798324,61024.0,61023.0,0.56028673]
[1719992569628,1.71806472,61024.0,61023.0,0.56028673]
[1719992569980,1.62196472,61024.0,61023.0,0.56028673]
[1719992570180,1.39032572,61024.0,61023.0,0.56028673]
[1719992572175,1.29422572,61024.0,61023.0,0.56028673]
[1719992572377,1.39032572,61024.0,61023.0,0.56028673]
[1719992572772,1.39047671,61024.0,61023.0,0.56028673]
[1719992573331,1.39047669,61024.0,61023.0,0.56028673]
[1719992576042,1.39048538,61024.0,61023.0,0.56028673]
[1719992578616,1.39048538,61024.0,61023.0,0.55798673]
[1719992579218,1.39042028,61024.0,61023.0,0.55798673]
[1719992580434,1.29432028,61024.0,61023.0,0.55798673]
[1719992580670,1.39042028,61024.0,61023.0,0.55798673]
[1719992581644,1.3708541,61024.0,61023.0,0.55798673]
[1719992581854,1.3903804,61024.0,61023.0,0.55798673]
[1719992583650,1.3903804,61024.0,61023.0,0.53486451]
[1719992584178,1.3903804,61024.0,61023.0,0.51150415]
[1719992585032,1.39035908,61024.0,61023.0,0.51150415]
[1719992585435,1.3708541,61024.0,61023.0,0.51150415]
[1719992585593,1.39035206,61024.0,61023.0,0.51150415]
[1719992587495,1.29425206,61024.0,61023.0,0.51150415]
[1719992587742,1.39035206,61024.0,61023.0,0.51150415]
[1719992588245,1.39034363,61024.0,61023.0,0.51150415]
[1719992594897,1.39040209,61024.0,61023.0,0.51150415]
[1719992595908,1.39040209,61024.0,61023.0,0.51242815]
[1719992596120,1.39124209,61024.0,61023.0,0.51242815]
[1719992598217,1.39124357,61024.0,61023.0,0.51242815]
[1719992601720,1.39124357,61024.0,61023.0,0.41452815]
[1719992602666,1.39124357,61024.0,61023.0,0.28291073]
[1719992602881,1.61084357,61024.0,61023.0,0.28291073]
[1719992603300,1.93858257,61024.0,61023.0,0.25916761]
[1719992603716,1.93858257,61024.0,61023.0,0.2354144]
[1719992604518,1.9190331,61024.0,61023.0,0.2354144]
[1719992604730,1.93882233,61024.0,61023.0,0.2354144]
[1719992605071,1.62312233,61024.0,61023.0,0.2948144]
[1719992605286,1.71922233,61024.0,61023.0,0.2948144]
[1719992607991,1.71922726,61024.0,61023.0,0.2948144]
[1719992609701,1.71922726,61024.0,61023.0,0.2354144]
[1719992610119,1.71922726,61024.0,61023.0,0.2948144]
[1719992611154,1.71929436,61024.0,61023.0,0.2948144]
[1719992611555,1.71929503,61024.0,61023.0,0.2948144]
[1719992612806,1.39071751,61024.0,61023.0,0.2948144]
[1719992613207,1.71845651,61024.0,61023.0,0.2948144]
[1719992613973,1.71845651,61024.0,61023.0,0.27137872]
[1719992614511,1.7183539,61024.0,61023.0,0.27137872]
[1719992617825,1.69859458,61024.0,61023.0,0.27137872]
[1719992618031,1.71824465,61024.0,61023.0,0.27137872]
[1719992619978,1.39050565,61024.0,61023.0,0.27137872]
[1719992621147,1.39056196,61024.0,61023.0,0.27137872]
[1719992621927,1.39140048,61024.0,61023.0,0.27137872]
[1719992622503,1.3716941,61024.0,61023.0,0.27137872]
[1719992625295,1.3716941,61024.0,61023.0,0.35153454]
[1719992626516,1.39140048,61024.0,61023.0,0.35153454]
[1719992626741,1.3716941,61024.0,61023.0,0.35153454]
[1719992631266,1.9119331,61024.0,61023.0,0.007924]
[1719992631661,0.819362,61023.0,61022.0,0.02835356]
[1719992631821,1.4852751,61023.0,61022.0,0.02835356]
[1719992632015,1.4852751,61023.0,61022.0,0.004845]
[1719992632634,1.8130201,61023.0,61022.0,0.004845]
[1719992633352,2.1407651,61023.0,61022.0,0.004845]
[1719992634120,0.819375,61022.0,61021.0,0.009207]
[1719992634397,1.2600431,61022.0,61021.0,0.009207]
[1719992634722,1.5877931,61022.0,61021.0,0.009207]
[1719992635085,1.9155431,61022.0,61021.0,0.009207]
[1719992635277,1.9155431,61022.0,61013.0,0.07987726]
[1719992635278,0.163896,61014.0,61013.0,0.07987726]
[1719992635478,0.6134571,61014.0,61013.0,0.24017606]
[1719992635679,0.9412501,61014.0,61013.0,0.21713557]
[1719992635881,1.2690431,61014.0,61013.0,0.21713557]
[1719992636064,1.28944492,61014.0,61013.0,0.21713557]
[1719992636429,1.61723792,61014.0,61013.0,0.21713557]
[1719992636845,1.61823792,61014.0,61013.0,0.22313557]
[1719992637573,1.61923792,61014.0,61013.0,0.23313557]
[1719992638945,1.52313792,61014.0,61013.0,0.23313557]
[1719992639125,1.61923792,61014.0,61013.0,0.23313557]
[1719992641873,1.5988361,61014.0,61013.0,0.23313557]
[1719992642173,1.61872477,61014.0,61013.0,0.23313557]
[1719992642369,1.5988361,61014.0,61013.0,0.23313557]
[1719992642549,1.61872477,61014.0,61013.0,0.23313557]
[1719992643290,1.61872477,61014.0,61013.0,0.016]
[1719992643291,2.03841777,61014.0,61013.0,0.016]
[1719992643496,2.58361077,61014.0,61013.0,0.016]
[1719992643852,2.65116163,61014.0,61013.0,0.016]
[1719992644051,2.89753263,61014.0,61013.0,0.016]
[1719992644864,2.89753263,61014.0,60998.0,0.08015582]
[1719992644865,0.163937,60999.0,60998.0,0.08015582]
[1719992645063,0.6135791,60999.0,60998.0,0.08015582]
[1719992645267,0.9414531,60999.0,60998.0,0.08015582]
[1719992645451,1.6158384,60999.0,60998.0,0.08015582]
[1719992645651,1.7158384,60999.0,60998.0,0.08015582]
[1719992645869,1.6197384,60999.0,60998.0,0.08015582]
[1719992646043,1.7158384,60999.0,60998.0,0.08015582]
[1719992647592,1.6197384,60999.0,60998.0,0.08015582]
[1719992647800,1.7158384,60999.0,60998.0,0.08015582]
[1719992647994,1.7158384,60999.0,60998.0,0.08215582]
[1719992647995,1.6197384,60999.0,60998.0,0.08215582]
[1719992648365,1.71634638,60999.0,60998.0,0.08215582]
[1719992651699,1.71625408,60999.0,60998.0,0.08215582]
[1719992654954,1.7162181,60999.0,60998.0,0.08215582]
[1719992655111,1.6972011,60999.0,60998.0,0.08215582]
[1719992655273,1.71621806,60999.0,60998.0,0.08215582]
[1719992655698,2.04409206,60999.0,60998.0,0.002]
[1719992655927,2.16459206,60999.0,60998.0,0.002]
[1719992656131,2.26029206,60999.0,60998.0,0.002]
[1719992656431,2.28032702,60999.0,60998.0,0.002]
[1719992657893,2.60852083,60999.0,60998.0,0.002]
[1719992658108,2.28064683,60999.0,60998.0,0.002]
[1719992658302,2.28064683,60999.0,60994.0,0.00022232]
[1719992658303,0.63763863,60999.0,60994.0,3.2e-07]
[1719992658508,0.813942,60995.0,60994.0,3.2e-07]
[1719992658717,1.28684187,60995.0,60994.0,3.2e-07]
[1719992659041,1.97224041,60995.0,60994.0,3.2e-07]
[1719992659260,2.62803041,60995.0,60994.0,3.2e-07]
[1719992660201,2.62142187,60995.0,60994.0,3.2e-07]
[1719992660326,2.62142187,60995.0,60994.0,0.00100032]
[1719992661182,2.9131941,60995.0,60994.0,0.00100032]
[1719992661378,2.9131941,60995.0,60988.0,0.06241543]
[1719992661379,0.49189,60989.0,60988.0,0.06241543]
[1719992661582,0.7136581,60989.0,60988.0,0.06241543]
[1719992662599,1.0415851,60989.0,60988.0,0.06241543]
[1719992663462,1.0425851,60989.0,60988.0,0.06341543]
[1719992663694,1.3705121,60989.0,60988.0,0.06341543]
[1719992663903,1.6994391,60989.0,60988.0,0.06341543]
[1719992664093,2.0273661,60989.0,60988.0,0.06341543]
[1719992667200,2.0273661,60989.0,60988.0,0.001]
[1719992669266,2.04702488,60989.0,60988.0,0.001]
[1719992669463,2.27192488,60989.0,60988.0,0.001]
[1719992671018,2.27191954,60989.0,60988.0,0.001]
[1719992671404,2.27191461,60989.0,60988.0,0.001]
[1719992671970,2.04701461,60989.0,60988.0,0.001]
[1719992673586,2.27821461,60989.0,60988.0,0.001]
[1719992674239,2.27820705,60989.0,60988.0,0.001]
[1719992674445,2.27820698,60989.0,60988.0,0.001]
[1719992677462,2.2585661,60989.0,60988.0,0.001]
[1719992677727,2.27824544,60989.0,60988.0,0.001]
[1719992680182,2.29810803,60989.0,60988.0,0.001]
[1719992680843,2.29810937,60989.0,60988.0,0.001]
[1719992681346,2.29810957,60989.0,60988.0,0.001]
[1719992682699,2.29375807,60989.0,60988.0,0.001]
[1719992682900,2.19305807,60989.0,60988.0,0.001]
[1719992683993,2.19328656,60989.0,60988.0,0.001]
[1719992686868,1.63875956,60989.0,60988.0,0.001]
[1719992687071,1.73485956,60989.0,60988.0,0.2938]
[1719992687268,1.73449083,60989.0,60988.0,0.2938]
[1719992687907,1.73448951,60989.0,60988.0,0.2938]
[1719992688286,1.73448951,60989.0,60988.0,0.2344]
[1719992688484,1.73448951,60989.0,60988.0,0.2938]
[1719992689279,1.8028852,60989.0,60988.0,0.2938]
[1719992690607,1.8028852,60989.0,60988.0,0.2344]
[1719992692952,2.3648122,60989.0,60988.0,0.001]
[1719992693531,0.491947,60982.0,60981.0,0.22468595]
[1719992693727,1.016012,60982.0,60981.0,0.22468595]
[1719992693973,1.55367417,60982.0,60980.0,0.0594]
[1719992694124,0.491971,60979.0,60978.0,0.0122752]
[1719992694327,1.28943679,60979.0,60978.0,0.0122752]
[1719992694537,1.71741779,60979.0,60978.0,0.0122752]
[1719992694956,1.94929879,60979.0,60978.0,0.0122752]
[1719992695156,2.04539879,60979.0,60978.0,0.0122752]
[1719992696793,2.04639879,60979.0,60978.0,0.0122752]
[1719992697008,2.04804359,60979.0,60978.0,0.0131992]
[1719992697259,2.04704359,60979.0,60978.0,0.0131992]
[1719992697604,2.04804359,60979.0,60978.0,0.0131992]
[1719992699839,2.28634359,60979.0,60978.0,0.0131992]
[1719992700084,2.61432459,60979.0,60978.0,0.0131992]
[1719992700288,2.19024164,60979.0,60978.0,0.0131992]
[1719992700518,2.3551079,60979.0,60978.0,0.0131992]
[1719992701459,2.3541079,60979.0,60978.0,0.0131992]
[1719992701663,2.1158079,60979.0,60978.0,0.0131992]
[1719992702424,2.1148079,60979.0,60978.0,0.0131992]
[1719992702633,2.11507836,60979.0,60978.0,0.0131992]
[1719992703031,2.11607836,60979.0,60978.0,0.0131992]
[1719992703567,2.11507836,60979.0,60978.0,0.0131992]
[1719992705061,1.78709736,60979.0,60978.0,0.0131992]
[1719992705490,1.7182077,60979.0,60978.0,0.0131992]
[1719992705666,1.7182077,60979.0,60978.0,0.1457992]
[1719992705878,1.7182078,60979.0,60978.0,0.1457992]
[1719992706078,1.7182078,60979.0,60978.0,0.08442002]
[1719992706395,1.71820529,60979.0,60978.0,0.08442002]
[1719992707046,1.86520331,60979.0,60978.0,0.08442002]
[1719992707316,1.71820529,60979.0,60978.0,0.08442002]
[1719992707959,1.62210529,60979.0,60978.0,0.08442002]
[1719992708176,1.71820529,60979.0,60978.0,0.08442002]
[1719992708845,0.63816229,60979.0,60976.0,0.0594]
[1719992709007,0.260096,60977.0,60976.0,0.0594]
[1719992709344,1.3905335,60977.0,60976.0,0.1832]
[1719992709663,1.3905335,60977.0,60976.0,0.1238]
[1719992709869,1.2944335,60977.0,60976.0,0.281]
[1719992710087,1.3905335,60977.0,60976.0,0.281]
[1719992710334,1.7185255,60977.0,60976.0,0.281]
[1719992710724,1.7185255,60977.0,60976.0,0.2216]
[1719992711143,1.7195255,60977.0,60976.0,0.2216]
[1719992711356,1.6234255,60977.0,60976.0,0.2216]
[1719992711563,1.7195255,60977.0,60976.0,0.2216]
[1719992712577,1.7205255,60977.0,60976.0,0.2216]
[1719992714100,1.7205255,60977.0,60976.0,0.281]
[1719992715496,1.39375327,60977.0,60976.0,0.281]
[1719992715704,1.29765327,60977.0,60976.0,0.281]
[1719992716109,1.39375327,60977.0,60976.0,0.281]
[1719992716309,1.42029774,60977.0,60976.0,0.281]
[1719992718569,1.41994039,60977.0,60976.0,0.281]
[1719992721696,1.39828457,60977.0,60976.0,0.281]
[1719992721897,1.41984279,60977.0,60976.0,0.281]
[1719992722659,1.32374279,60977.0,60976.0,0.281]
[1719992722882,1.41984279,60977.0,60976.0,0.281]
[1719992723963,1.32374279,60977.0,60976.0,0.281]
[1719992724362,1.41984279,60977.0,60976.0,0.281]
[1719992724678,1.32374279,60977.0,60976.0,0.281]
[1719992724984,1.42012097,60977.0,60976.0,0.281]
[1719992725374,1.42012097,60977.0,60976.0,1.281]
[1719992726569,1.32402097,60977.0,60976.0,1.281]
[1719992728208,1.30218457,60977.0,60976.0,1.281]
[1719992728423,1.32454871,60977.0,60976.0,1.281]
[1719992730702,0.66856471,60977.0,60976.0,1.4412988]
[1719992731546,0.66856471,60977.0,60976.0,1.4422228]
[1719992731547,0.66856528,60977.0,60976.0,1.4422228]
[1719992734646,0.66774879,60977.0,60976.0,1.4422228]
[1719992735085,0.66774879,60977.0,60976.0,1.4722228]
[1719992735683,0.33975679,60977.0,60976.0,1.4722228]
[1719992736264,0.31820857,60977.0,60976.0,1.4722228]
[1719992740749,0.21820857,60977.0,60976.0,1.4722228]
[1719992741169,0.0276681,60977.0,60976.0,1.4722228]
[1719992741960,0.0266681,60977.0,60976.0,1.4722228]
[1719992742342,0.0276681,60977.0,60976.0,1.4722228]
[1719992742743,0.1906641,60977.0,60976.0,1.4722228]
[1719992743208,0.1916641,60977.0,60976.0,1.4722228]
[1719992743419,0.0266681,60977.0,60976.0,1.4722228]
[1719992743908,0.0276681,60977.0,60976.0,1.4782228]
[1719992744114,0.0266681,60977.0,60976.0,1.4722228]
[1719992744326,0.0266681,60977.0,60976.0,1.63258586]
[1719992744527,0.0276681,60977.0,60976.0,1.63858586]
[1719992746286,0.0276681,60977.0,60976.0,1.4782228]
[1719992748252,0.1916641,60977.0,60976.0,1.4782228]
[1719992748400,0.2877641,60977.0,60976.0,1.4482228]
[1719992749764,0.2877641,60977.0,60976.0,1.4243211]
[1719992751811,0.2877641,60977.0,60976.0,1.2266228]
[1719992752017,0.30422364,60977.0,60976.0,1.21511176]
[1719992752447,0.30422364,60977.0,60976.0,1.19141953]
[1719992752624,0.30322364,60977.0,60976.0,1.19141953]